fUST/lending_fUST_20251001
["ID","MTS","AMOUNT","RATE_DAILY","PERIOD"]
[388664199,1759311046454,-500.0,0.00019254,2]
[388664201,1759311046463,-500.0,0.00019255,2]
[388664203,1759311046472,-500.0,0.00019255,2]
[388664205,1759311046481,-2177.49,0.00019256,2]
[388664207,1759311046491,-500.0,0.00019528,2]
[388664209,1759311046503,-151.0,0.00019528,2]
[388664211,1759311046513,-718.44561002,0.0001953,2]
[388664216,1759311046548,-1459.04438998,0.0001953,2]
[388664218,1759311046557,-151.0,0.00019584,2]
[388664219,1759311046566,-4912.10100871,0.00019716,2]
[388664276,1759311047420,-342.18194845,0.0001925,2]
[388664277,1759311047432,-157.81805155,0.0001925,2]
[388664278,1759311047442,-500.0,0.00019251,2]
[388664279,1759311047451,-500.0,0.00019255,2]
[388664280,1759311047460,-500.0,0.00019255,2]
[388664281,1759311047470,-500.0,0.00019255,2]
[388664282,1759311047479,-500.0,0.00019255,2]
[388664283,1759311047488,-500.0,0.00019255,2]
[388664284,1759311047498,-500.0,0.00019525,2]
[388664285,1759311047507,-12539.67405781,0.00019716,2]
[388664286,1759311047519,-117633.9957866,0.00019716,2]
[388664287,1759311047529,-237.274798,0.00019716,2]
[388664288,1759311047540,-249.762045,0.00019716,2]
[388664289,1759311047550,-249.762045,0.00019716,2]
[388664290,1759311047559,-249.762045,0.00019716,2]
[388664291,1759311047569,-249.762045,0.00019716,2]
[388664292,1759311047579,-151.0,0.00019716,2]
[388664293,1759311047588,-176.038799,0.00019716,2]
[388664294,1759311047598,-151.0,0.00019716,2]
[388664295,1759311047608,-151.0,0.00019716,2]
[388664296,1759311047618,-151.0,0.00019716,2]
[388664297,1759311047627,-163.485737,0.00019716,2]
[388664298,1759311047636,-163.485737,0.00019716,2]
[388664300,1759311047645,-163.485737,0.00019716,2]
[388664301,1759311047656,-163.485737,0.00019716,2]
[388664303,1759311047665,-151.0,0.00019716,2]
[388664304,1759311047675,-5818.582153,0.00019716,2]
[388664306,1759311047684,-5818.582153,0.00019716,2]
[388664308,1759311047694,-5818.582153,0.00019716,2]
[388664309,1759311047703,-5818.582153,0.00019716,2]
[388664310,1759311047713,-154.497571,0.00019716,2]
[388664311,1759311047722,-151.0,0.00019716,2]
[388664312,1759311047732,-151.0,0.00019716,2]
[388664313,1759311047742,-157.853161,0.00019716,2]
[388664314,1759311047751,-151.0,0.00019716,2]
[388664315,1759311047761,-151.0,0.00019716,2]
[388664316,1759311047770,-151.0,0.00019716,2]
[388664317,1759311047780,-358.895236,0.00019787,2]
[388664318,1759311047790,-500.0,0.00019798,2]
[388664319,1759311047800,-748.43,0.00019798,2]
[388664320,1759311047810,-719.76,0.00019798,2]
[388664321,1759311047819,-1337.72,0.00019798,2]
[388664322,1759311047828,-500.0,0.00019798,2]
[388664323,1759311047838,-5162.18,0.00019798,2]
[388664324,1759311047847,-500.0,0.00019798,2]
[388664325,1759311047856,-4221.18,0.00019799,2]
[388664326,1759311047866,-500.0,0.00019799,2]
[388664327,1759311047876,-500.0,0.00019799,2]
[388664328,1759311047885,-500.0,0.00019799,2]
[388664329,1759311047895,-1060.99,0.00019799,2]
[388664330,1759311047905,-756.72,0.00019799,2]
[388664331,1759311047914,-2167.06,0.00019799,2]
[388664332,1759311047923,-585.91,0.00019799,2]
[388664333,1759311047933,-1432.31,0.00019799,2]
[388664334,1759311047942,-2334.58,0.00019799,2]
[388664335,1759311047952,-500.0,0.00019799,2]
[388664336,1759311047962,-2034.87,0.00019799,2]
[388664337,1759311047971,-1676.67,0.00019799,2]
[388664338,1759311047983,-2074.96,0.00019799,2]
[388664339,1759311047992,-776.28,0.00019799,2]
[388664340,1759311048003,-956.69,0.00019799,2]
[388664341,1759311048012,-699.67,0.00019799,2]
[388664342,1759311048022,-1773.17,0.00019799,2]
[388664343,1759311048032,-993.59,0.00019799,2]
[388664344,1759311048049,-551.31,0.00019799,2]
[388664345,1759311048061,-829.34,0.00019799,2]
[388664346,1759311048073,-4004.17,0.00019799,2]
[388664347,1759311048083,-500.0,0.00019799,2]
[388664348,1759311048092,-500.0,0.00019799,2]
[388664349,1759311048102,-2779.6,0.00019799,2]
[388664350,1759311048111,-753.45,0.00019799,2]
[388664351,1759311048120,-151.0,0.000198,2]
[388664352,1759311048129,-500.0,0.000198,2]
[388664353,1759311048139,-500.0,0.000198,2]
[388664354,1759311048149,-225.31730289,0.000198,2]
[388664355,1759311048158,-1845.4,0.000198,2]
[388664356,1759311048168,-1043.49,0.000198,2]
[388664357,1759311048179,-500.0,0.000198,2]
[388664358,1759311048188,-515.63,0.000198,2]
[388664359,1759311048197,-500.0,0.000198,2]
[388664360,1759311048207,-500.0,0.000198,2]
[388664361,1759311048216,-1547.93,0.000198,2]
[388664362,1759311048225,-1573.14,0.000198,2]
[388664363,1759311048234,-500.0,0.000198,2]
[388664364,1759311048243,-784.62,0.000198,2]
[388664365,1759311048252,-500.0,0.000198,2]
[388664366,1759311048262,-973.98,0.000198,2]
[388664367,1759311048271,-603.26,0.000198,2]
[388664368,1759311048280,-500.0,0.000198,2]
[388664369,1759311048294,-500.0,0.000198,2]
[388664370,1759311048303,-787.42,0.000198,2]
[388664371,1759311048312,-826.98,0.000198,2]
[388664372,1759311048322,-500.0,0.000198,2]
[388664373,1759311048331,-500.0,0.000198,2]
[388664374,1759311048342,-3795.02,0.000198,2]
[388664375,1759311048351,-1630.61,0.000198,2]
[388664376,1759311048360,-920.33,0.000198,2]
[388664377,1759311048372,-1500.29,0.000198,2]
[388664378,1759311048382,-500.0,0.000198,2]
[388664379,1759311048391,-774.14,0.000198,2]
[388664380,1759311048400,-500.0,0.000198,2]
[388664381,1759311048410,-500.0,0.000198,2]
[388664382,1759311048419,-845.69,0.000198,2]
[388664383,1759311048428,-500.0,0.000198,2]
[388664384,1759311048437,-500.0,0.000198,2]
[388664385,1759311048447,-500.0,0.000198,2]
[388664386,1759311048456,-2040.66,0.000198,2]
[388664387,1759311048466,-1462.1,0.000198,2]
[388664388,1759311048476,-1088.12,0.000198,2]
[388664389,1759311048486,-1345.86,0.000198,2]
[388664390,1759311048495,-598.67,0.000198,2]
[388664391,1759311048504,-1335.97,0.000198,2]
[388664392,1759311048514,-500.0,0.000198,2]
[388664393,1759311048523,-500.0,0.000198,2]
[388664394,1759311048532,-500.0,0.000198,2]
[388664395,1759311048543,-500.0,0.000198,2]
[388664396,1759311048552,-2864.52,0.000198,2]
[388664397,1759311048561,-510.23,0.000198,2]
[388664398,1759311048571,-1682.0,0.000198,2]
[388664399,1759311048580,-1423.65,0.000198,2]
[388664400,1759311048590,-1908.8,0.000198,2]
[388664401,1759311048600,-1637.64,0.000198,2]
[388664402,1759311048610,-1100.58,0.000198,2]
[388664403,1759311048619,-500.0,0.000198,2]
[388664404,1759311048628,-500.0,0.000198,2]
[388664405,1759311048638,-953.37,0.000198,2]
[388664406,1759311048647,-1916.2,0.000198,2]
[388664407,1759311048657,-981.82,0.000198,2]
[388664408,1759311048667,-500.0,0.00019801,2]
[388664409,1759311048677,-500.0,0.00019801,2]
[388664410,1759311048686,-662.32,0.00019801,2]
[388664411,1759311048695,-1958.33,0.00019801,2]
[388664412,1759311048705,-500.0,0.00019801,2]
[388664413,1759311048714,-1996.83,0.00019801,2]
[388664414,1759311048724,-4467.24,0.00019801,2]
[388664415,1759311048733,-1641.33,0.00019801,2]
[388664416,1759311048743,-500.0,0.00019801,2]
[388664417,1759311048752,-1185.73,0.00019801,2]
[388664418,1759311048762,-4455.52,0.00019801,2]
[388664419,1759311048771,-2544.34,0.00019801,2]
[388664420,1759311048781,-500.0,0.00019802,2]
[388664421,1759311048791,-500.0,0.00019802,2]
[388664422,1759311048801,-1071.32,0.00019802,2]
[388664423,1759311048811,-500.0,0.00019802,2]
[388664424,1759311048821,-500.0,0.00019802,2]
[388664425,1759311048831,-706.61,0.00019802,2]
[388664426,1759311048840,-426.268202,0.00019802,2]
[388664427,1759311048850,-500.0,0.00019802,2]
[388664428,1759311048859,-500.0,0.00019802,2]
[388664429,1759311048868,-500.0,0.00019802,2]
[388664430,1759311048878,-500.0,0.00019802,2]
[388664431,1759311048888,-500.0,0.00019802,2]
[388664432,1759311048898,-666.55,0.00019802,2]
[388664433,1759311048908,-500.0,0.00019802,2]
[388664434,1759311048918,-500.0,0.00019802,2]
[388664435,1759311048928,-500.0,0.00019802,2]
[388664436,1759311048937,-500.0,0.00019802,2]
[388664437,1759311048946,-500.0,0.00019802,2]
[388664438,1759311048956,-500.0,0.00019802,2]
[388664439,1759311048966,-1049.02,0.00019802,2]
[388664440,1759311048975,-658.16,0.00019802,2]
[388664441,1759311048985,-500.0,0.00019802,2]
[388664442,1759311048995,-500.0,0.00019802,2]
[388664443,1759311049005,-165.7088272,0.00019802,2]
[388664444,1759311049016,-500.0,0.00019802,2]
[388664445,1759311049026,-500.0,0.00019802,2]
[388664446,1759311049037,-500.0,0.00019802,2]
[388664447,1759311049047,-500.0,0.00019802,2]
[388664448,1759311049057,-619.44,0.00019802,2]
[388664449,1759311049067,-500.0,0.00019802,2]
[388664450,1759311049077,-500.0,0.00019802,2]
[388664451,1759311049087,-726.87,0.00019802,2]
[388664452,1759311049096,-500.0,0.00019802,2]
[388664453,1759311049105,-903.29,0.00019802,2]
[388664454,1759311049115,-500.0,0.00019802,2]
[388664455,1759311049125,-938.32,0.00019802,2]
[388664456,1759311049135,-500.0,0.00019802,2]
[388664457,1759311049144,-364.23478486,0.00019802,2]
[388664458,1759311049154,-500.0,0.00019802,2]
[388664459,1759311049163,-500.0,0.00019802,2]
[388664460,1759311049173,-1711.63,0.00019802,2]
[388664461,1759311049183,-553.56,0.00019802,2]
[388664462,1759311049193,-500.0,0.00019802,2]
[388664463,1759311049203,-500.0,0.00019802,2]
[388664464,1759311049214,-3082.04,0.00019802,2]
[388664465,1759311049223,-1012.61290269,0.00019802,2]
[388664466,1759311049233,-836.6,0.00019802,2]
[388664467,1759311049243,-500.0,0.00019802,2]
[388664468,1759311049253,-2197.07,0.00019802,2]
[388664469,1759311049262,-500.0,0.00019802,2]
[388664470,1759311049271,-500.0,0.00019802,2]
[388664471,1759311049281,-500.0,0.00019802,2]
[388664472,1759311049294,-500.0,0.00019802,2]
[388664473,1759311049304,-3971.63,0.00019802,2]
[388664474,1759311049314,-151.0,0.00019802,2]
[388664475,1759311049325,-151.0,0.00019802,2]
[388664476,1759311049336,-151.0,0.00019802,2]
[388664477,1759311049346,-423.59061024,0.00019802,2]
[388664478,1759311049355,-151.0,0.00019802,2]
[388664479,1759311049364,-424.80047157,0.00019802,2]
[388664480,1759311049374,-151.0,0.00019802,2]
[388664481,1759311049383,-407.47546568,0.00019803,2]
[388664482,1759311049394,-680.32,0.00019803,2]
[388664483,1759311049403,-1053.11,0.00019803,2]
[388664484,1759311049413,-500.0,0.00019803,2]
[388664485,1759311049422,-500.0,0.00019803,2]
[388664486,1759311049432,-838.34,0.00019803,2]
[388664487,1759311049442,-696.31,0.00019803,2]
[388664488,1759311049452,-151.0,0.00019803,2]
[388664489,1759311049461,-241.708949,0.00019803,2]
[388664490,1759311049471,-500.0,0.00019803,2]
[388664491,1759311049481,-500.0,0.00019803,2]
[388664492,1759311049491,-503.35,0.00019803,2]
[388664493,1759311049501,-500.0,0.00019803,2]
[388664494,1759311049511,-500.0,0.00019803,2]
[388664495,1759311049522,-174.180251,0.00019803,2]
[388664496,1759311049531,-163.485737,0.00019803,2]
[388664497,1759311049542,-163.485737,0.00019803,2]
[388664498,1759311049708,-163.485737,0.00019803,2]
[388664499,1759311049718,-163.485737,0.00019803,2]
[388664500,1759311049728,-200.923621,0.00019803,2]
[388664501,1759311049737,-5818.582153,0.00019803,2]
[388664502,1759311049747,-5818.582153,0.00019803,2]
[388664503,1759311049757,-5818.582153,0.00019803,2]
[388664504,1759311049766,-5818.582153,0.00019803,2]
[388664505,1759311049776,-500.0,0.00019803,2]
[388664506,1759311049785,-151.0,0.00019803,2]
[388664507,1759311049796,-500.0,0.00019804,2]
[388664508,1759311049805,-500.0,0.00019804,2]
[388664509,1759311049815,-508.84,0.00019804,2]
[388664510,1759311049824,-500.0,0.00019804,2]
[388664511,1759311049833,-885.52,0.00019804,2]
[388664512,1759311049843,-1051.22,0.00019804,2]
[388664513,1759311049854,-910.65,0.00019804,2]
[388664514,1759311049863,-2680.62,0.00019804,2]
[388664515,1759311049873,-1572.96,0.00019804,2]
[388664516,1759311049882,-1255.05,0.00019804,2]
[388664517,1759311049891,-500.0,0.00019804,2]
[388664518,1759311049900,-500.0,0.00019804,2]
[388664519,1759311049910,-249.762045,0.00019804,2]
[388664520,1759311049919,-249.762045,0.00019804,2]
[388664521,1759311049928,-2919.15,0.00019804,2]
[388664522,1759311049938,-249.762045,0.00019804,2]
[388664523,1759311049947,-249.762045,0.00019804,2]
[388664524,1759311049957,-1034.67,0.00019804,2]
[388664525,1759311049966,-151.0,0.00019804,2]
[388664526,1759311049975,-500.0,0.00019804,2]
[388664527,1759311049984,-500.0,0.00019804,2]
[388664528,1759311049993,-1034.46,0.00019804,2]
[388664529,1759311050002,-3653.43,0.00019804,2]
[388664530,1759311050012,-929.05,0.00019804,2]
[388664531,1759311050022,-1132.81,0.00019804,2]
[388664532,1759311050031,-500.0,0.00019804,2]
[388664533,1759311050040,-500.0,0.00019804,2]
[388664534,1759311050050,-856.78,0.00019804,2]
[388664535,1759311050059,-2177.49,0.00019804,2]
[388664536,1759311050071,-524.88384032,0.00019815,3]
[388664537,1759311050081,-936.39,0.00019815,2]
[388664538,1759311050090,-513.6,0.00019815,2]
[388664539,1759311050099,-500.0,0.00019815,2]
[388664540,1759311050108,-500.0,0.00019815,2]
[388664541,1759311050118,-670.11,0.00019815,2]
[388664542,1759311050127,-500.0,0.00019815,2]
[388664543,1759311050137,-1283.03,0.00019815,2]
[388664544,1759311050146,-500.0,0.00019815,2]
[388664545,1759311050155,-1111.82,0.00019815,2]
[388664546,1759311050165,-500.0,0.00019815,2]
[388664547,1759311050175,-500.0,0.00019815,2]
[388664548,1759311050184,-500.0,0.00019815,2]
[388664549,1759311050194,-500.0,0.00019815,2]
[388664550,1759311050203,-327.21404038,0.00019815,2]
[388664551,1759311050212,-500.0,0.00019815,2]
[388664552,1759311050221,-500.0,0.00019815,2]
[388664553,1759311050230,-500.0,0.00019815,2]
[388664554,1759311050240,-500.0,0.00019815,2]
[388664555,1759311050249,-578.05,0.00019815,2]
[388664556,1759311050258,-500.0,0.00019815,2]
[388664557,1759311050267,-500.0,0.00019815,2]
[388664558,1759311050276,-746.86,0.00019815,2]
[388664559,1759311050285,-500.0,0.00019815,2]
[388664560,1759311050299,-500.0,0.00019815,2]
[388664561,1759311050309,-500.0,0.00019815,2]
[388664562,1759311050318,-500.0,0.00019815,2]
[388664563,1759311050327,-861.96,0.00019815,2]
[388664564,1759311050337,-500.0,0.00019815,2]
[388664565,1759311050346,-156.17428807,0.00019815,2]
[388664566,1759311050355,-500.0,0.00019815,2]
[388664567,1759311050366,-973.72,0.00019815,2]
[388664568,1759311050375,-647.97,0.00019815,2]
[388664569,1759311050385,-225.69422441,0.00019815,2]
[388664570,1759311050395,-500.0,0.00019815,2]
[388664571,1759311050404,-500.0,0.00019815,2]
[388664572,1759311050413,-619.36,0.00019815,2]
[388664573,1759311050422,-500.0,0.00019815,2]
[388664574,1759311050431,-603.3,0.00019815,2]
[388664575,1759311050440,-1087.58,0.00019815,2]
[388664576,1759311050449,-2927.19,0.00019815,2]
[388664577,1759311050459,-500.0,0.00019815,2]
[388664578,1759311050468,-500.0,0.00019815,2]
[388664579,1759311050477,-500.0,0.00019815,2]
[388664580,1759311050487,-500.0,0.00019815,2]
[388664581,1759311050497,-500.0,0.00019815,2]
[388664582,1759311050507,-3460.01,0.00019815,2]
[388664583,1759311050517,-500.0,0.00019815,2]
[388664584,1759311050527,-500.0,0.00019815,2]
[388664585,1759311050536,-846.03,0.00019815,2]
[388664586,1759311050548,-518.11,0.00019815,2]
[388664587,1759311050557,-1290.06,0.00019815,2]
[388664588,1759311050566,-500.0,0.00019815,2]
[388664589,1759311050576,-500.0,0.00019815,2]
[388664590,1759311050585,-669.89,0.00019815,2]
[388664591,1759311050595,-500.0,0.00019815,2]
[388664592,1759311050604,-340.25521046,0.00019815,2]
[388664593,1759311050613,-500.0,0.00019815,2]
[388664594,1759311050623,-1294.55,0.00019815,2]
[388664595,1759311050633,-1000.0,0.00019821,2]
[388664596,1759311050642,-1000.0,0.00019821,2]
[388664597,1759311050651,-1000.0,0.00019821,2]
[388664598,1759311050661,-1000.0,0.00019821,2]
[388664599,1759311050670,-1000.0,0.00019821,2]
[388664600,1759311050679,-1000.0,0.00019821,2]
[388664601,1759311050688,-1000.0,0.00019821,2]
[388664602,1759311050697,-1000.0,0.00019821,2]
[388664603,1759311050706,-1000.0,0.00019821,2]
[388664604,1759311050716,-1000.0,0.00019821,2]
[388664605,1759311050724,-1000.0,0.00019821,2]
[388664606,1759311050734,-1000.0,0.00019821,2]
[388664607,1759311050743,-505.33770531,0.00019821,2]
[388664608,1759311050752,-1000.0,0.00019821,2]
[388664609,1759311050761,-1000.0,0.00019821,2]
[388664610,1759311050770,-1130.89369699,0.00019821,2]
[388664611,1759311050780,-1000.0,0.00019821,2]
[388664612,1759311050791,-151.0,0.00019858,2]
[388664613,1759311050800,-591.0,0.00019858,2]
[388664614,1759311050809,-224.01437502,0.00019858,2]
[388664615,1759311050818,-151.0,0.00019858,2]
[388664616,1759311050827,-500.0,0.00019873,2]
[388664617,1759311050837,-500.0,0.00019873,2]
[388664618,1759311050846,-501.8607107,0.00019873,2]
[388664619,1759311050855,-500.0,0.00019873,2]
[388664620,1759311050864,-500.0,0.00019873,2]
[388664621,1759311050873,-151.0,0.000199,2]
[388664622,1759311050883,-61267.46559819,0.00019975,2]
[388664623,1759311050892,-151.0,0.00019975,2]
[388664624,1759311050901,-151.0,0.00019975,2]
[388664625,1759311050910,-151.0,0.00019975,2]
[388664626,1759311050920,-151.0,0.00019975,2]
[388664627,1759311050929,-151.0,0.00019975,2]
[388664628,1759311050939,-67849.78,0.0002,28]
[388664629,1759311050948,-151.0,0.0002,2]
[388664630,1759311050958,-249.762045,0.0002,2]
[388664631,1759311050967,-249.762045,0.0002,2]
[388664632,1759311050976,-249.762045,0.0002,2]
[388664633,1759311050986,-249.762045,0.0002,2]
[388664634,1759311050995,-174.167417,0.0002,2]
[388664635,1759311051004,-151.0,0.0002,2]
[388664636,1759311051013,-366.70175973,0.0002,2]
[388664637,1759311051022,-4038.6835485,0.0002,2]
[388664638,1759311051031,-42953.47703346,0.0002,2]
[388664639,1759311051048,-801.94659396,0.0002,2]
[388664659,1759311051445,1780.27982206,0.00034671,120]
[388664826,1759311104291,445.85637236,0.00019154,2]
[388664831,1759311147149,230507.37969649,0.00019151,2]
[388664832,1759311148963,-510.38512961,0.00019151,2]
[388664833,1759311151511,-400.33085956,0.00019151,2]
[388664834,1759311153122,-417.37658991,0.00019151,2]
[388664835,1759311155540,-227.03775526,0.00019151,2]
[388664836,1759311157478,-300.0,0.00019151,2]
[388664837,1759311159991,-206.61339169,0.0001915,2]
[388664838,1759311160014,-58.23264562,0.00019151,2]
[388664839,1759311162557,-200.0,0.0001915,2]
[388664840,1759311165124,-300.0,0.0001915,2]
[388664841,1759311165147,-401.42349959,0.0001915,2]
[388664842,1759311165170,-500.0,0.0001915,2]
[388664843,1759311165191,-500.0,0.0001915,2]
[388664844,1759311165213,-500.0,0.0001915,2]
[388664845,1759311165234,-500.0,0.0001915,2]
[388664846,1759311165254,-298.51234555,0.0001915,2]
[388664847,1759311165276,-500.0,0.0001915,2]
[388664848,1759311165297,-518.81396918,0.0001915,2]
[388664849,1759311165320,-500.0,0.0001915,2]
[388664850,1759311165345,-436.63010988,0.0001915,2]
[388664851,1759311165369,-620.77535671,0.0001915,2]
[388664852,1759311165391,-6931.66533308,0.00019151,2]
[388664853,1759311166636,-2042.76,0.00019151,2]
[388664854,1759311169233,-645.25045073,0.00019151,2]
[388664855,1759311171305,-300.0,0.00019151,2]
[388664856,1759311172841,-250.0,0.00019151,2]
[388664857,1759311216243,531.2180215,0.00027397,120]
[388664863,1759311245674,1117.934448,0.00034665,120]
[388664864,1759311331331,184.49001761,0.00019066,2]
[388664865,1759311378650,-184.49001759,0.00019108,2]
[388664866,1759311378678,-300.0,0.00019147,2]
[388664867,1759311378705,-300.0,0.00019148,2]
[388664868,1759311378732,-300.0,0.00019148,2]
[388664869,1759311378759,-300.0,0.00019148,2]
[388664870,1759311378786,-1200.0,0.00019148,2]
[388664871,1759311379098,-10000.01,0.00019149,2]
[388664872,1759311379139,-2852.7293785,0.00019149,2]
[388664873,1759311379166,-4294.551243,0.00019149,2]
[388664874,1759311379199,-180.08615074,0.0001915,2]
[388664875,1759311379227,-500.0,0.0001915,2]
[388664876,1759311379252,-184.49001759,0.0001915,2]
[388664877,1759311379315,-8270.85766334,0.00019151,2]
[388664878,1759311379342,-10000.01,0.00019151,2]
[388664879,1759311379411,-10000.01,0.00019151,2]
[388664880,1759311379542,-10000.01,0.00019151,2]
[388664881,1759311379662,-10000.01,0.00019151,2]
[388664882,1759311379785,-10000.01,0.00019151,2]
[388664883,1759311379921,-10000.01,0.00019151,2]
[388664884,1759311388012,470.67611897,0.00019066,2]
[388664885,1759311388474,-10000.01,0.00019151,2]
[388664886,1759311418520,-449.10194818,0.0001915,2]
[388664887,1759311418560,-9101.80610364,0.00019151,2]
[388664888,1759311418643,-10000.01,0.00019151,2]
[388664889,1759311418792,-10000.01,0.00019151,2]
[388664890,1759311418937,-10000.01,0.00019151,2]
[388664891,1759311419083,-4193.28461883,0.00019151,2]
[388664892,1759311419106,-1613.44076234,0.00019151,2]
[388664893,1759311467927,14318.24796159,0.00019051,2]
[388664896,1759311478581,-300.0,0.00019166,2]
[388664897,1759311478609,-1200.0,0.00019166,2]
[388664898,1759311478635,-658.01844446,0.00019166,2]
[388664899,1759311479882,225.92,0.00016384,2]
[388664900,1759311480528,-249.88971549,0.00019167,2]
[388664901,1759311497734,-707.74638234,0.00019167,2]
[388664902,1759311500249,-166.063822,0.00019167,2]
[388664903,1759311502148,-460.32188159,0.00019167,2]
[388664904,1759311504731,-699.35993462,0.00019167,2]
[388664905,1759311506253,-249.96406178,0.00019167,2]
[388664906,1759311507971,-439.08508952,0.00019167,2]
[388664907,1759311538853,1349.3055334,0.00019154,2]
[388664908,1759311574228,4108.74757768,0.00019167,2]
[388664909,1759311577340,204.8013467,0.00019048,2]
[388664910,1759311588832,-891.25242232,0.00019167,2]
[388664911,1759311597395,5000.0,0.00019167,2]
[388664912,1759311599098,-2972.44088734,0.00019167,2]
[388664913,1759311599256,-4055.12822532,0.00019167,2]
[388664914,1759311599283,-300.0,0.00019177,2]
[388664915,1759311606495,1200.0,0.00019177,2]
[388664916,1759311609856,89.75354936,0.00019151,2]
[388664917,1759311609880,4476.48713164,0.00019151,2]
[388664918,1759311620018,5000.0,0.00019177,2]
[388664919,1759311630420,523.52286836,0.0001915,2]
[388664920,1759311630446,10000.01,0.0001915,2]
[388664921,1759311630472,10000.01,0.0001915,2]
[388664922,1759311630497,10000.01,0.0001915,2]
[388664923,1759311631405,-255.01229992,0.0001915,2]
[388664924,1759311639840,-2081.41156488,0.0001915,2]
[388664925,1759311639954,-10000.01,0.0001915,2]
[388664926,1759311642393,2548.68718634,0.00019081,2]
[388664927,1759311648910,-10000.01,0.0001915,2]
[388664928,1759311649073,-10000.01,0.0001915,2]
[388664929,1759311649191,-10000.01,0.0001915,2]
[388664930,1759311649316,-10000.01,0.0001915,2]
[388664931,1759311649463,-10000.01,0.0001915,2]
[388664932,1759311649807,-10000.01,0.0001915,2]
[388664933,1759311649883,-10000.01,0.0001915,2]
[388664934,1759311650148,283.682823,0.00018236,2]
[388664935,1759311668987,-4752.73351042,0.0001915,2]
[388664936,1759311675945,-166.063822,0.00019151,2]
[388664937,1759311676509,411.84160409,0.00019078,2]
[388664938,1759311679150,-133.936178,0.00019151,2]
[388664939,1759311679209,-9320.29603991,0.00019152,2]
[388664940,1759311679375,-10000.01,0.00019152,2]
[388664941,1759311689023,-10000.01,0.00019152,2]
[388664942,1759311699041,-500.0,0.00019149,2]
[388664943,1759311699069,-232.61845327,0.00019149,2]
[388664944,1759311699096,-226.22820168,0.00019149,2]
[388664945,1759311699126,-1646.68973679,0.00019152,2]
[388664946,1759311705554,634.6891892,0.00019149,2]
[388664948,1759311794364,10000.01,0.0001915,2]
[388664949,1759311794385,10000.01,0.0001915,2]
[388664950,1759311794407,10000.01,0.0001915,2]
[388664951,1759311794429,10000.01,0.0001915,2]
[388664952,1759311794450,10000.01,0.0001915,2]
[388664953,1759311794473,10000.01,0.0001915,2]
[388664954,1759311794497,10000.01,0.0001915,2]
[388664955,1759311794524,10000.01,0.0001915,2]
[388664956,1759311794548,10000.01,0.0001915,2]
[388664957,1759311794573,10000.01,0.0001915,2]
[388664958,1759311795459,-439.08508952,0.0001915,2]
[388664959,1759311819351,-424.46,0.0001914,3]
[388664960,1759311819378,-1107.65,0.0001914,3]
[388664961,1759311819405,-200.0,0.0001915,10]
[388664962,1759311819432,-204.275355,0.0001915,10]
[388664963,1759311825642,389.50303118,0.00019032,2]
[388664964,1759311827254,1556.4541126,0.00019032,2]
[388664965,1759311829391,-5492.5501008,0.0001915,2]
[388664966,1759311829528,-553.82,0.0001914,3]